Cogmind - Beta 14 @@@ ROGUE MODE // 2025.03.31 @ 14:39:14 Player: golanco Result: Destroyed by S-10 Pest with Light Assault Rifle Performance ------------- Evolutions (0) 0 Regions Visited (2) 400 Robots Destroyed (20) 100 Value Destroyed (381) 381 Prototype IDs (2) 40 Alien Tech Used (0) 0 Bonus (0) 0 TOTAL SCORE: 921 Bonus ------- None Cogmind --------- Core Integrity 0/250 Matter 104/300 Energy 125/125 System Corruption 6% Temperature Cool (0) Movement Walking (400) Ox4 Location -10/Mines Parts ------- > --- POWER (1) -------- Light Ion Engine > --- PROPULSION (2) --- Aluminum Leg (fused) Aluminum Leg > --- UTILITY (2) ------ Huge Storage Unit Core Shielding > --- WEAPON (2) ------- Autogun Autogun > --- INVENTORY (25) --- Ion Engine Light Ion Engine Flight Unit Flight Unit Flight Unit Flight Unit Flight Unit Huge Storage Unit Visual Processing Unit Signal Interpreter Transport Network Coupler Light Armor Plating Scrap Shield EM Pulse Gun Medium Laser Beam Rifle Beam Rifle Beam Rifle Beam Rifle Grenade Launcher Maul Scrap Shield Fragment (40) Peak State ------------ > --- POWER ------------ Light Nuclear Core > --- PROPULSION ------- Light Treads Light Treads > --- UTILITY ---------- Huge Storage Unit Sensor Array > --- WEAPON ----------- Autogun Autogun > --- INVENTORY -------- Ion Engine Light Ion Engine Huge Storage Unit Visual Processing Unit Seismic Detector Light Armor Plating EM Pulse Gun Medium Laser Beam Rifle Beam Rifle Beam Rifle Beam Rifle Autogun Autogun Grenade Launcher Maul [Rating: 13] Favorites ----------- Power Light Ion Engine Engine Light Ion Engine Power Core Light Nuclear Core Propulsion Light Treads Treads Light Treads Leg Aluminum Leg Utility Huge Storage Unit Device Sensor Array Storage Huge Storage Unit Protection Core Shielding Weapon Autogun Energy Gun EM Pulse Gun Energy Cannon Beam Cannon Ballistic Gun Autogun Launcher Grenade Launcher Build | -11 -10 -10 ------- Run | Yrd Mat Min Slots Evolved . | . . . Power . | . . . Propulsion . | . . . Utility . | . . . Weapon . | . . . Parts Attached 23 | 7 16 . Power 3 | 1 2 . Engine 2 | 1 1 . Core 1 | . 1 . Reactor . | . . . Propulsion 5 | 2 3 . Treads 3 | 2 1 . Leg 2 | . 2 . Wheel . | . . . Hover . | . . . Flight . | . . . Utility 5 | 2 3 . Device 2 | 1 1 . Storage 2 | 1 1 . Processor . | . . . Hackware . | . . . Protection 1 | . 1 . Artifact . | . . . Weapon 10 | 2 8 . Energy Gun 2 | 2 . . Energy Cannon 1 | . 1 . Ballistic Gun 6 | . 6 . Ballistic Cannon . | . . . Launcher 1 | . 1 . Special Weapon . | . . . Impact Weapon . | . . . Slashing Weapon . | . . . Piercing Weapon . | . . . Special Melee Weapon . | . . . Unidentified Prototypes . | . . . Parts Lost 7 | . 7 . Power 2 | . 2 . Propulsion 2 | . 2 . Utility 1 | . 1 . Weapon 2 | . 2 . Highest Loss Streak 2 | . 2 . To Critical Strikes 1 | . 1 . Average Slot Usage (%) 82 | . 82 100 Engine 10 | . 10 14 Core 3 | . 3 . Treads 12 | . 12 . Leg 7 | . 6 28 Device 6 | . 6 . Storage 14 | . 14 14 Protection 1 | . 1 14 Energy Cannon 4 | . 4 . Ballistic Gun 21 | . 20 28 Peak Build Rating 13 | 7 13 12 Average Rating 9 | 5 10 12 On Entrance 6 | . 7 12 Naked Turns . | . . . Heaviest Build 92 | 13 92 90 Greatest Support 40 | 40 40 20 Greatest Overweight (x) 29 | . 29 4 Average Overweight (x) 4 | . 4 4 Largest Inventory Capacity 25 | 8 25 25 Average Capacity 23 | 7 24 25 Most Carried 24 | 2 24 23 Average Carried 18 | 1 19 23 Final Capacity 25 | 8 25 25 Final Carried 23 | 2 23 23 Class Distribution -------------------- 100% | Mutant Dominant Class ---------------- Mutant | -10/Materials Mutant | -10/Mines Resources | -11 -10 -10 ----------- Run | Yrd Mat Min Matter Collected 859 | 266 593 . Remotely . | . . . Salvage Created 486 | 93 393 . Parts 38 | 8 30 . Haulers Intercepted . | . . . Recyclers Shooed . | . . . Parts Field Recycled . | . . . Retrieved Matter . | . . . Parts Self-Destructed . | . . . Prevented . | . . . Kills | -11 -10 -10 ------- Run | Yrd Mat Min Combat Hostiles Destroyed 14 | . 14 . Guns 13 | . 13 . Classes Destroyed 8 | 2 6 . Worker 1 | . 1 . Builder 1 | . 1 . Tunneler 2 | 2 . . Recycler 1 | 1 . . Watcher 1 | . 1 . Swarmer 8 | . 8 . Grunt 4 | . 4 . Subdweller 2 | . 2 . Best Kill Streak 5 | 2 5 . Combat Bots Only 5 | . 5 . Max Kills in Single Turn 2 | 1 2 . Gunslinging 1 | . 1 . Exploded . | . . . Melee . | . . . Uniques/NPCs Destroyed . | . . . Combat | -11 -10 -10 -------- Run | Yrd Mat Min Hostile Shots Fired 133 | . 132 1 Missed 33 | . 33 . Damage Taken 1188 | . 1179 9 Core 252 | . 244 8 Absorbed by Shields . | . . . Redirected to Shielding 4 | . 3 1 Core Remaining (%) 100 | 100 . . Volleys Fired 85 | 5 80 . Largest 2 | 2 2 . Hottest 83 | 80 83 . Shots Fired 163 | 10 153 . Gun 149 | 10 139 . Cannon 12 | . 12 . Launcher 2 | . 2 . Special . | . . . Kinetic 135 | . 135 . Thermal 12 | . 12 . Explosive 2 | . 2 . Electromagnetic 14 | 10 4 . Robot Hit Streak 8 | 3 8 . Robot Miss Streak 6 | 2 6 . Penetration Max . | . . . Secondary Targets 3 | . 3 . Max Gunslinging Chain 1 | . 1 . Shots Hit Robots 78 | 6 72 . Core Hits 27 | 3 24 . Critical Kills 2 | . 2 . Critical Parts Destroyed 1 | . 1 . Critical Strikes 3 | . 3 . Meltdown 1 | . 1 . Destroy 2 | . 2 . Melee Attacks . | . . . Impact . | . . . Slashing . | . . . Piercing . | . . . Sneak Attacks . | . . . Combat Hostiles . | . . . Follow-up Attacks . | . . . Damage Inflicted 1154 | 132 1022 . Guns 1053 | 84 969 . Cannons 53 | . 53 . Explosions 48 | 48 . . Melee . | . . . Ramming . | . . . Kinetic 969 | . 969 . Thermal 101 | 48 53 . Explosive . | . . . Electromagnetic 84 | 84 . . Impact . | . . . Slashing . | . . . Piercing . | . . . Highest Corruption 6 | . 6 6 Average Corruption 4 | . 4 6 Corruption Purged . | . . . Corruption Blocked . | . . . Effects 46 | . 45 1 Message Errors 8 | . 8 . Matter Fused 13 | . 13 . Heat Flow Errors 2 | . 2 . Energy Discharges 3 | . 3 . Parts Rejected 1 | . 1 . Parts Fused 1 | . 1 . Data Loss (minor) 8 | . 7 1 Data Loss (major) 3 | . 3 . Misfires 6 | . 6 . Alerts 1 | . 1 . Overload Shots . | . . . Overflow Damage . | . . . Projectiles . | . . . Explosions . | . . . Melee . | . . . Knockbacks . | . . . Impact . | . . . Kinetic . | . . . Secondary . | . . . Self-Inflicted Damage . | . . . Shots . | . . . Rammed . | . . . Targets Rammed . | . . . Kicked . | . . . Crushed . | . . . Highest Temperature 423 | 54 423 . Average Temperature 68 | 25 72 . Received Heat Transfer 147 | . 147 . Effects 3 | . 3 . Shutdowns 1 | . 1 . Energy Bleed 1 | . 1 . Short Circuit 1 | . 1 . Siege Activations . | . . . Robots Corrupted . | . . . Combat Hostiles . | . . . Parts Fried . | . . . Impact Corruptions . | . . . Robots Melted 1 | . 1 . Combat Hostiles 1 | . 1 . Parts Melted 2 | . 2 . Heat Transferred 211 | 100 111 . Parts Sabotaged . | . . . Parts Stolen . | . . . Parts Stripped . | . . . Power Chain Reactions 1 | 1 . . Alert | -11 -10 -10 ------- Run | Yrd Mat Min Peak Influence 167 | 15 167 29 Initial 29 | . 9 29 Average 53 | 7 55 29 Maximum Alert Level . | . . . Low Security (%) 100 | 100 100 100 Level 1 . | . . . Level 2 . | . . . Level 3 . | . . . Level 4 . | . . . Level 5 . | . . . High Security . | . . . Max Security . | . . . Squads Dispatched . | . . . Investigation . | . . . Extermination . | . . . Reinforcement . | . . . Assault . | . . . Garrison . | . . . Intercept . | . . . Searches Triggered . | . . . Construction Impeded . | . . . Haulers Reinforced . | . . . Active Scanning Responses . | . . . Cargo Convoy Interrupts . | . . . Stealth | -11 -10 -10 --------- Run | Yrd Mat Min Distress Signals 2 | . 2 . Communications Jammed . | . . . Distress Signals . | . . . Times Spotted 34 | . 31 3 Peak Tracking Total 5 | . 5 3 Tactical Retreats 4 | . 4 . Traps | -11 -10 -10 ------- Run | Yrd Mat Min Traps Triggered 2 | . 2 . Indirectly . | . . . Trap Hack Attempts . | . . . Triggered . | . . . Disarmed . | . . . Reprogrammed . | . . . Reused . | . . . Traps Extracted . | . . . Installed . | . . . Triggered . | . . . Machines | -11 -10 -10 ---------- Run | Yrd Mat Min Machines Disabled 3 | . 3 . Max in Single Turn 1 | . 1 . Machines Repaired . | . . . Machines Dismantled . | . . . Machines Sabotaged . | . . . Overloaded Fab Kills . | . . . Hacking | -11 -10 -10 --------- Run | Yrd Mat Min Machines Accessed 2 | . 2 . Terminals 2 | . 2 . Fabricators . | . . . Repair Stations . | . . . Recycling Units . | . . . Scanalyzers . | . . . Garrison Access . | . . . Total Hacks 5 | . 5 . Successful 3 | . 3 . Failed 2 | . 2 . Catastrophic . | . . . Database Lockouts . | . . . Manual 3 | . 3 . Terminals 5 | . 5 . Fabricators . | . . . Repair Stations . | . . . Recycling Units . | . . . Scanalyzers . | . . . Garrison Access . | . . . Terminal Hacks 2 | . 2 . Prototype ID Bank 1 | . 1 . Registered Components 1 | . 1 . Fabricator Hacks . | . . . Repair Station Hacks . | . . . Recycling Unit Hacks . | . . . Scanalyzer . | . . . Garrison Access Hacks . | . . . Unauthorized Hacks 1 | . 1 . Terminals 1 | . 1 . Botnet 1 | . 1 . Fabricators . | . . . Repair Stations . | . . . Recycling Units . | . . . Scanalyzers . | . . . Garrison Access . | . . . Data Cores Recovered . | . . . Used . | . . . Hacking Detections 1 | . 1 . Full Trace Events . | . . . Feedback Events . | . . . Feedback Blocked . | . . . Robot Schematics Acquired . | . . . Robots Built . | . . . Authchips . | . . . Time . | . . . Total Robot Build Rating . | . . . Part Schematics Acquired . | . . . Parts Built . | . . . Authchips . | . . . Time . | . . . Total Part Build Rating . | . . . Parts Repaired . | . . . Time . | . . . Parts Recycled . | . . . Recycled Matter . | . . . Retrieved Matter . | . . . Retrieved Components . | . . . Parts Scanalyzed . | . . . Part Schematics Acquired . | . . . Parts Damaged . | . . . Bothacking | -11 -10 -10 ------------ Run | Yrd Mat Min Used RIF Installer . | . . . Robots Hacked . | . . . Non-combat . | . . . Combat . | . . . Robot Hacks Applied . | . . . Relay Couplers Released . | . . . Fabnet Peak Effective % . | . . . Robots Rewired . | . . . Allies Hacked . | . . . Hacks Repelled . | . . . Allies | -11 -10 -10 -------- Run | Yrd Mat Min Total Allies . | . . . Largest Group . | . . . Highest-Rated Group . | . . . Highest-Rated Ally . | . . . Total Orders . | . . . Ally Attacks . | . . . Total Damage . | . . . Kills . | . . . Allies Corrupted . | . . . Allies Melted . | . . . Intel | -11 -10 -10 ------- Run | Yrd Mat Min Robot Analysis Total . | . . . Derelict Logs Recovered 1 | . . 1 Drone Launches . | . . . Drone Recoveries . | . . . Exploration | -11 -10 -10 ------------- Run | Yrd Mat Min Turns Passed 2484 | 132 2323 29 Spaces Moved 552 | 68 476 8 Core 44 | 3 41 . Treads 370 | 65 305 . Legs 138 | . 130 8 Wheels . | . . . Hover . | . . . Flight . | . . . Fastest Speed 50 | 50 160 400 Average Speed 400 | 155 435 400 Slowest Speed 1500 | 160 1500 400 Overloaded Moves . | . . . Propulsion Burnouts . | . . . Robots Hopped . | . . . Cave-ins Triggered 1 | . 1 . Exploration Rate (%) 18 | 5 42 8 Regions Visited 2 Branch Regions 1 Pre-discovered Areas . | . . . Known Exits Taken . | . . . Unknown Exits Taken 2 | 1 1 . Scrap Searched . | . . . Spaces Dug 8 | . 8 . Terrain Destroyed 21 | 7 14 . Melee . | . . . Projectile . | . . . AOE 21 | 7 14 . Terrain Rammed . | . . . Walls Destroyed . | . . . Machines Disabled . | . . . Actions | -11 -10 -10 --------- Run | Yrd Mat Min Total 696 | 81 607 8 Wait 1 | . 1 . Move 550 | 67 475 8 Hop . | . . . Pick Up 29 | 2 27 . Fast Attach 15 | 7 8 . Attach 4 | . 4 . Detach . | . . . Swap 4 | . 4 . Drop 8 | . 8 . Fire 85 | 5 80 . Melee . | . . . Ram . | . . . Kick . | . . . Crush . | . . . Escape Stasis . | . . . Rewire . | . . . Trap . | . . . Miscellaneous . | . . . Route ------- -11/Scrapyard -10/Materials (discovered 3 exits: [*Mat] / [*Min] / [*Sub]) -10/Mines History --------- Turn | Location | Event 17 | -11/Scrapyard | Discovered new exit (range 15) 133 | -11/Scrapyard | Entered Materials 316 | -10/Materials | Build established: Mutant 804 | -10/Materials | Discovered new exit (range 13) 1033 | -10/Materials | Derelicts attacked the area 1193 | -10/Materials | Discovered new exit (range 10) 1237 | -10/Materials | Crushed by falling debris 1237 | -10/Materials | Core integrity fell below 50% 1388 | -10/Materials | Core integrity fell below 20% 2432 | -10/Materials | Discovered new exit (range 4) 2456 | -10/Materials | Entered Mines 2485 | -10/Mines | Destroyed by S-10 Pest with Light Assault Rifle Last Messages --------------- S-10 Pest destroyed. Switching to secondary target: S-10 Pest. R-06 Scavenger collects Flight Unit. S-10 Pest destroyed. R-06 Scavenger collects Broken Beam Cannon. Acquired 13 matter. K-01 Serf collects debris. Acquired 12 matter. K-01 Serf collects debris. Acquired 17 matter. K-01 Serf collects debris. U-05 Engineer builds a Door. Acquired Flight Unit. System corrupted: Matter fused (-8). EXIT=FOUND LOCATION=UNKNOWN GOAL=ESCAPE System corrupted: Component data lost. Acquired derelict log, extracted data. Data stored: Mines entrances (x2). Map ----- +----------------------------------------------------+ | | | ???????????????????????????????????????? | | ???????????????????????????????????????? | | ???????????????????????????????????????? | | ???????????????????????????????????????? | | ???????????????????????????????????????? | | ???????????????????????????????????????? | | ???????????????????????????????????????? | | ???????????????????????????????????????? | | ???????????????????????????????????????? | | ???????????????????????????????????????? | | ???????????????????????????????????????? | | ???????????????????????????????????????? | | ???????????????????????????????????????? | | ???????????????????????????????????????? | | ???????????????????????????????????????? | | ???????????????????????????????????????? | | ???????????????????????????????????????? | | ???????????????????????????????????????? | | ???????????????????????????????????????? | | ???????????????????????????????????????? | | ???????????????????????????????????????? | | ????????????????#???#??????????????????? | | ???????????????## # #######??????????? | | ???????????????# s #??????????? | | ?????????? s @ ##??????????? | | ?????????? s #### ##?????????? | | ?????????? ?????????# #?????????? | | ????????????????????????## #?????????? | | ???????????????????????## #?????????? | | ???????????????????????# ##?????????? | | ???????????????????????# ##?????????? | | ???????????????????????# ##????????? | | ???????????????????????# #????????? | | ???????????????????????## #???????? | | ????????????????????????## #??????? | | ?????????????????????????# #?????? | | ?????????????????????????# #?????? | | ?????????????????????????# #?????? | | ?????????????????????????## ##?????? | | ??????????????????????????# ##??????? | | ?????????????????????????? ###???????? | | ??????????????????????????# #?????????? | | ??????????????????????????# #?????????? | | ?????????????????????????? ??????????? | | ?????????????????????????? ??????????? | | ?????????????????????????? ??????????? | | ??????????????????????????###??????????? | | ???????????????????????????????????????? | | ???????????????????????????????????????? | +----------------------------------------------------+ Best States ------------- Heat Dissipation 25 Energy Generation 14 Energy Capacity 160 Matter Stores 300 Matter Capacity 300 Sight Range 16 Robot Scan Range 14 Terrain Scan Density 10 Core Shielding 20 Evasion (%) 40 Recoil Reduction 2 Item Schematics ----------------- None Robot Schematics ------------------ None Fabricated ------------ Nothing Alien Tech Used ----------------- None Achievements -------------- None Challenges ------------ None Game ------ Seed MicrowarpLightpackRigger Manual? 0 Play Time 00:08:13 Cumulative 29.8 hours Start 2025.03.31 @ 14:31:04 End 2025.03.31 @ 14:39:14 Sessions 1 Manual Loads 0 Difficulty Rogue Special Mode None Game No. 79 Rogue 79 Adventurer 0 Explorer 0 Win Type - Total 0 Types 0/0/0/0/0/0/0/0/0 Lore% 16 Gallery% 23 Achievement% 25 Wizard Run 0 Options --------- Layout 1 ASCII 0 Keyboard 0 Movement Mouse Keybinds 0 Fullscreen 1 Font 36/Smallcaps Map View 50x40 Zoom Use 0% Tactical HUD 0 Map Filters NONE Filters NONE Steam 1 RUN: b5c0f1c5-09ca-4624-ab38-31030969ae93